[Event "*** Titled Tuesday Blitz"]
[Site "Chess.com"]
[Date "2020.05.05"]
[Round "6"]
[White "fabianvivasz"]
[Black "emperor87"]
[Result "0-1"]
[WhiteElo "2353"]
[BlackElo "2571"]
[TimeControl "180+1"]
[EndTime "11:06:44 PDT"]
[Termination "emperor87 won by resignation"]

1. e4 {[%clk 0:02:59.4]} 1... c5 {[%clk 0:02:56]} 2. Nf3 {[%clk 0:02:58.8]} 2...
d6 {[%clk 0:02:56.2]} 3. d4 {[%clk 0:02:58.5]} 3... cxd4 {[%clk 0:02:56.4]} 4.
Nxd4 {[%clk 0:02:59.4]} 4... Nf6 {[%clk 0:02:56.9]} 5. Nc3 {[%clk 0:02:59.8]}
5... Nc6 {[%clk 0:02:57.1]} 6. Bg5 {[%clk 0:02:59.3]} 6... e6 {[%clk 0:02:57.3]}
7. Bb5 {[%clk 0:02:57.1]} 7... Bd7 {[%clk 0:02:56.3]} 8. Bxc6 {[%clk 0:02:56.8]}
8... bxc6 {[%clk 0:02:56.2]} 9. Qf3 {[%clk 0:02:57.4]} 9... c5 {[%clk
0:02:53.3]} 10. Nb3 {[%clk 0:02:56.3]} 10... Bc6 {[%clk 0:02:51.1]} 11. O-O-O
{[%clk 0:02:50.5]} 11... Be7 {[%clk 0:02:50.3]} 12. Nxc5 {[%clk 0:02:42.9]}
12... Qb6 {[%clk 0:02:50.1]} 13. Nb3 {[%clk 0:02:37]} 13... a5 {[%clk
0:02:46.8]} 14. Qe3 {[%clk 0:02:22.4]} 14... Qxe3+ {[%clk 0:02:45]} 15. Bxe3
{[%clk 0:02:23.3]} 15... Nxe4 {[%clk 0:02:44.5]} 16. Nxe4 {[%clk 0:02:07.7]}
16... Bxe4 {[%clk 0:02:43.9]} 17. Rd4 {[%clk 0:02:02.2]} 17... Bxg2 {[%clk
0:02:41.1]} 18. Rg1 {[%clk 0:02:02.2]} 18... Bc6 {[%clk 0:02:39.4]} 19. Rc4
{[%clk 0:01:54.7]} 19... Bd5 {[%clk 0:02:37.8]} 20. Ra4 {[%clk 0:01:48.9]} 20...
O-O {[%clk 0:02:36.1]} 21. Rxa5 {[%clk 0:01:36.9]} 21... Rxa5 {[%clk 0:02:33.7]}
22. Nxa5 {[%clk 0:01:37.8]} 22... Ra8 {[%clk 0:02:33.6]} 23. Bd2 {[%clk
0:01:17.6]} 23... Bd8 {[%clk 0:02:31.2]} 24. b4 {[%clk 0:01:17.5]} 24... Bxa2
{[%clk 0:02:29.6]} 25. Kb2 {[%clk 0:01:13.8]} 25... Bd5 {[%clk 0:02:27.8]} 26.
c4 {[%clk 0:01:13.5]} 26... Bxa5 {[%clk 0:02:22]} 27. bxa5 {[%clk 0:01:04.5]}
27... Bxc4 {[%clk 0:02:20.8]} 28. Kc3 {[%clk 0:01:01.2]} 28... d5 {[%clk
0:02:19.2]} 29. Kd4 {[%clk 0:00:59]} 29... f6 {[%clk 0:02:17.6]} 30. Rb1 {[%clk
0:00:57.5]} 30... h5 {[%clk 0:02:14.9]} 31. h4 {[%clk 0:00:44.9]} 31... Kh7
{[%clk 0:02:14.4]} 32. Rb6 {[%clk 0:00:40.8]} 32... e5+ {[%clk 0:02:12.5]} 33.
Kc5 {[%clk 0:00:40]} 33... Kg6 {[%clk 0:02:12.5]} 34. Rb7 {[%clk 0:00:36.1]}
34... Ba6 {[%clk 0:02:05.8]} 35. Rc7 {[%clk 0:00:34.4]} 35... d4 {[%clk
0:02:02.4]} 36. Kb6 {[%clk 0:00:31.4]} 36... e4 {[%clk 0:01:57.8]} 37. Ra7
{[%clk 0:00:28.4]} 37... Rxa7 {[%clk 0:01:56.2]} 38. Kxa7 {[%clk 0:00:29.3]}
38... Bc4 {[%clk 0:01:54.5]} 39. Kb6 {[%clk 0:00:29.2]} 39... d3 {[%clk
0:01:51.8]} 40. a6 {[%clk 0:00:26.3]} 40... Bxa6 {[%clk 0:01:44.5]} 41. Kxa6
{[%clk 0:00:27.2]} 41... Kf5 {[%clk 0:01:44.7]} 42. Kb5 {[%clk 0:00:19.4]} 42...
g5 {[%clk 0:01:44.4]} 43. hxg5 {[%clk 0:00:16.2]} 43... fxg5 {[%clk 0:01:44.3]}
44. Kc4 {[%clk 0:00:13.9]} 44... h4 {[%clk 0:01:44.1]} 45. f3 {[%clk 0:00:02.4]}
45... h3 {[%clk 0:01:43.9]} 46. fxe4+ {[%clk 0:00:01.3]} 46... Kxe4 {[%clk
0:01:43.8]} 47. Bf4 {[%clk 0:00:01.8]} 0-1

[Event "*** Titled Tuesday Blitz"]
[Site "Chess.com"]
[Date "2020.05.05"]
[Round "6"]
[White "annacramling"]
[Black "violetflower04"]
[Result "0-1"]
[WhiteElo "1926"]
[BlackElo "2210"]
[TimeControl "180+1"]
[EndTime "11:06:44 PDT"]
[Termination "violetflower04 won on time"]

1. d4 {[%clk 0:03:00.9]} 1... d5 {[%clk 0:02:59.4]} 2. c4 {[%clk 0:03:00.3]}
2... e6 {[%clk 0:02:59.6]} 3. Nc3 {[%clk 0:03:00.6]} 3... Nf6 {[%clk 0:02:59.9]}
4. cxd5 {[%clk 0:03:01.3]} 4... exd5 {[%clk 0:03:00.8]} 5. Bg5 {[%clk
0:03:01.6]} 5... Be7 {[%clk 0:03:01.5]} 6. e3 {[%clk 0:03:02.2]} 6... O-O {[%clk
0:03:01.9]} 7. Bd3 {[%clk 0:03:02.8]} 7... Nbd7 {[%clk 0:03:02.3]} 8. Qd2 {[%clk
0:02:58.8]} 8... c5 {[%clk 0:02:55.9]} 9. dxc5 {[%clk 0:02:51.9]} 9... Nxc5
{[%clk 0:02:56.8]} 10. Nf3 {[%clk 0:02:49.1]} 10... h6 {[%clk 0:02:29.4]} 11.
Bh4 {[%clk 0:02:07.8]} 11... Nfe4 {[%clk 0:02:28.8]} 12. Bxe7 {[%clk 0:01:07.5]}
12... Nxd2 {[%clk 0:02:25.9]} 13. Bxd8 {[%clk 0:01:07.2]} 13... Nxf3+ {[%clk
0:02:25.2]} 14. gxf3 {[%clk 0:01:08.1]} 14... Nxd3+ {[%clk 0:02:24.9]} 15. Ke2
{[%clk 0:01:00.6]} 15... Nxb2 {[%clk 0:02:24]} 16. Bc7 {[%clk 0:00:45.3]} 16...
d4 {[%clk 0:02:14.4]} 17. exd4 {[%clk 0:00:43.2]} 17... Bf5 {[%clk 0:02:07.2]}
18. Ne4 {[%clk 0:00:38.2]} 18... Rfe8 {[%clk 0:02:05.8]} 19. Rab1 {[%clk
0:00:29.9]} 19... Rxe4+ {[%clk 0:01:46.9]} 20. fxe4 {[%clk 0:00:27.8]} 20...
Bxe4 {[%clk 0:01:47.8]} 21. Rxb2 {[%clk 0:00:27.4]} 21... Bxh1 {[%clk 0:01:48]}
22. f3 {[%clk 0:00:27.3]} 22... b6 {[%clk 0:01:19.2]} 23. Kf2 {[%clk 0:00:25.9]}
23... Rc8 {[%clk 0:01:19.8]} 24. Bf4 {[%clk 0:00:19.4]} 24... Rc3 {[%clk
0:01:15.9]} 25. Be3 {[%clk 0:00:19.7]} 25... g5 {[%clk 0:01:15.5]} 26. Re2
{[%clk 0:00:09]} 26... f5 {[%clk 0:01:14.9]} 27. f4 {[%clk 0:00:05.8]} 27...
gxf4 {[%clk 0:01:14.3]} 28. Bxf4 {[%clk 0:00:06.2]} 28... Rf3+ {[%clk
0:01:14.5]} 29. Kg1 {[%clk 0:00:05.4]} 29... Rxf4 {[%clk 0:01:15.1]} 30. Kxh1
{[%clk 0:00:05.8]} 30... Rxd4 {[%clk 0:01:15.6]} 31. Re8+ {[%clk 0:00:04.5]}
31... Kf7 {[%clk 0:01:15.2]} 32. Rc8 {[%clk 0:00:04.5]} 32... Rd1+ {[%clk
0:01:13.6]} 33. Kg2 {[%clk 0:00:05.2]} 33... Rd2+ {[%clk 0:01:14.5]} 34. Kg3
{[%clk 0:00:05.3]} 34... Rxa2 {[%clk 0:01:15.4]} 35. h4 {[%clk 0:00:03.1]} 35...
Ra4 {[%clk 0:01:14.3]} 36. Rc7+ {[%clk 0:00:02.5]} 36... Kg6 {[%clk 0:01:14.2]}
37. Rc6+ {[%clk 0:00:02.5]} 37... Kh5 {[%clk 0:01:14.6]} 38. Rf6 {[%clk
0:00:01.4]} 38... f4+ {[%clk 0:01:13.4]} 0-1

[Event "*** Titled Tuesday Blitz"]
[Site "Chess.com"]
[Date "2020.05.05"]
[Round "6"]
[White "Zurability"]
[Black "karinachess1"]
[Result "1-0"]
[WhiteElo "2684"]
[BlackElo "2480"]
[TimeControl "180+1"]
[EndTime "11:06:47 PDT"]
[Termination "Zurability won on time"]

1. c4 {[%clk 0:03:00.9]} 1... d6 {[%clk 0:02:51.3]} 2. d4 {[%clk 0:02:58]} 2...
e5 {[%clk 0:02:51.1]} 3. Nf3 {[%clk 0:02:58.1]} 3... e4 {[%clk 0:02:50.4]} 4.
Ng5 {[%clk 0:02:57.8]} 4... f5 {[%clk 0:02:50.5]} 5. Nc3 {[%clk 0:02:55]} 5...
Be7 {[%clk 0:02:50.7]} 6. Nh3 {[%clk 0:02:55.4]} 6... Nf6 {[%clk 0:02:51.1]} 7.
g3 {[%clk 0:02:53.3]} 7... O-O {[%clk 0:02:50.9]} 8. Bg2 {[%clk 0:02:53.6]} 8...
c6 {[%clk 0:02:48.5]} 9. d5 {[%clk 0:02:52.7]} 9... Nbd7 {[%clk 0:02:42.1]} 10.
b3 {[%clk 0:02:39.7]} 10... Ne5 {[%clk 0:02:34.3]} 11. O-O {[%clk 0:02:33.3]}
11... Kh8 {[%clk 0:02:18.4]} 12. f3 {[%clk 0:02:33.1]} 12... exf3 {[%clk
0:01:58]} 13. exf3 {[%clk 0:02:34]} 13... Qb6+ {[%clk 0:01:47.3]} 14. Kh1 {[%clk
0:02:28.7]} 14... Bd7 {[%clk 0:01:44.8]} 15. Nf4 {[%clk 0:02:26.1]} 15... Rae8
{[%clk 0:01:40]} 16. Re1 {[%clk 0:02:11]} 16... Qc7 {[%clk 0:01:12.9]} 17. Be3
{[%clk 0:02:08]} 17... c5 {[%clk 0:01:09.8]} 18. Bc1 {[%clk 0:02:06.2]} 18...
Bd8 {[%clk 0:01:05.6]} 19. Bb2 {[%clk 0:02:06.3]} 19... a6 {[%clk 0:01:00.6]}
20. a4 {[%clk 0:02:04.2]} 20... Qb8 {[%clk 0:00:58.4]} 21. Ne6 {[%clk
0:02:02.4]} 21... Rg8 {[%clk 0:00:48.9]} 22. Qc2 {[%clk 0:01:55.3]} 22... g6
{[%clk 0:00:36.7]} 23. Re2 {[%clk 0:01:51.6]} 23... Bxe6 {[%clk 0:00:27.7]} 24.
dxe6 {[%clk 0:01:52.5]} 24... Be7 {[%clk 0:00:16.4]} 25. f4 {[%clk 0:01:50.9]}
25... Nc6 {[%clk 0:00:15.4]} 26. Nd5 {[%clk 0:01:50.9]} 26... Rgf8 {[%clk
0:00:14.5]} 27. Rd1 {[%clk 0:01:46.6]} 27... Kg8 {[%clk 0:00:14.3]} 28. Bc3
{[%clk 0:01:35.5]} 28... Nxd5 {[%clk 0:00:11.5]} 29. Bxd5 {[%clk 0:01:36.4]}
29... Nb4 {[%clk 0:00:09.2]} 30. Qd2 {[%clk 0:01:34.2]} 30... b5 {[%clk
0:00:06.9]} 31. axb5 {[%clk 0:01:31.6]} 31... axb5 {[%clk 0:00:07.8]} 32. Bb2
{[%clk 0:01:25.9]} 32... bxc4 {[%clk 0:00:07.2]} 33. Qc3 {[%clk 0:01:23.9]}
33... Bf6 {[%clk 0:00:05.8]} 34. e7+ {[%clk 0:01:24.2]} 34... Kg7 {[%clk
0:00:06.1]} 35. exf8=Q+ {[%clk 0:01:23.7]} 35... Rxf8 {[%clk 0:00:07]} 36. Qxc4
{[%clk 0:01:21.1]} 36... Nxd5 {[%clk 0:00:01.4]} 37. Qxd5 {[%clk 0:01:19.6]}
37... Qb5 {[%clk 0:00:01.6]} 38. Bxf6+ {[%clk 0:01:16.4]} 38... Rxf6 {[%clk
0:00:01.1]} 39. Rde1 {[%clk 0:01:17.3]} 39... Kh6 {[%clk 0:00:01.1]} 40. Kg2
{[%clk 0:01:12.5]} 1-0

[Event "*** Titled Tuesday Blitz"]
[Site "Chess.com"]
[Date "2020.05.05"]
[Round "6"]
[White "tan275"]
[Black "Winehouse83"]
[Result "0-1"]
[WhiteElo "2182"]
[BlackElo "2502"]
[TimeControl "180+1"]
[EndTime "11:06:49 PDT"]
[Termination "Winehouse83 won by resignation"]

1. d4 {[%clk 0:02:42.3]} 1... Nf6 {[%clk 0:02:56.5]} 2. c4 {[%clk 0:02:43.2]}
2... e6 {[%clk 0:02:56.4]} 3. g3 {[%clk 0:02:43.1]} 3... d5 {[%clk 0:02:50.3]}
4. Bg2 {[%clk 0:02:43.5]} 4... Be7 {[%clk 0:02:50.1]} 5. Nf3 {[%clk 0:02:43.2]}
5... O-O {[%clk 0:02:50.3]} 6. O-O {[%clk 0:02:43.7]} 6... dxc4 {[%clk
0:02:50.6]} 7. Qa4 {[%clk 0:02:39.7]} 7... a6 {[%clk 0:02:46.5]} 8. Qxc4 {[%clk
0:02:39.2]} 8... b5 {[%clk 0:02:46.3]} 9. Qc2 {[%clk 0:02:39.4]} 9... Bb7 {[%clk
0:02:46]} 10. Rd1 {[%clk 0:02:38.2]} 10... Be4 {[%clk 0:02:42.3]} 11. Qb3 {[%clk
0:02:36.5]} 11... Bd5 {[%clk 0:02:36.4]} 12. Qe3 {[%clk 0:02:20.2]} 12... b4
{[%clk 0:02:10.2]} 13. Ne5 {[%clk 0:02:10.4]} 13... Nbd7 {[%clk 0:02:04.6]} 14.
Nc6 {[%clk 0:02:03.9]} 14... Qe8 {[%clk 0:02:02.4]} 15. Nxe7+ {[%clk 0:02:02.3]}
15... Qxe7 {[%clk 0:02:03.3]} 16. Nd2 {[%clk 0:01:52.1]} 16... Bxg2 {[%clk
0:01:49.1]} 17. Kxg2 {[%clk 0:01:51.5]} 17... c5 {[%clk 0:01:48.4]} 18. Nf3
{[%clk 0:01:48.5]} 18... cxd4 {[%clk 0:01:45]} 19. Nxd4 {[%clk 0:01:47.8]} 19...
Nc5 {[%clk 0:01:44.5]} 20. Nc6 {[%clk 0:01:32.4]} 20... Qb7 {[%clk 0:01:44.5]}
21. Qxc5 {[%clk 0:01:31]} 21... Rac8 {[%clk 0:01:42.3]} 22. Kg1 {[%clk
0:00:33.1]} 22... Rxc6 {[%clk 0:01:41.7]} 23. Qe5 {[%clk 0:00:28.5]} 23... Rc2
{[%clk 0:01:37]} 24. Bg5 {[%clk 0:00:26.4]} 24... Nd5 {[%clk 0:01:26.3]} 25. e4
{[%clk 0:00:21.6]} 25... Nb6 {[%clk 0:01:17]} 26. b3 {[%clk 0:00:16.6]} 26...
Qc8 {[%clk 0:01:11.2]} 27. Be7 {[%clk 0:00:15.8]} 27... Re8 {[%clk 0:01:02.7]}
28. Qd6 {[%clk 0:00:16.2]} 28... Rc6 {[%clk 0:00:56]} 29. Qxb4 {[%clk
0:00:15.6]} 29... Nd7 {[%clk 0:00:55.9]} 30. Bh4 {[%clk 0:00:14.5]} 30... Ne5
{[%clk 0:00:55.7]} 31. Qd4 {[%clk 0:00:13.8]} 31... Nf3+ {[%clk 0:00:55.5]} 0-1

[Event "*** Titled Tuesday Blitz"]
[Site "Chess.com"]
[Date "2020.05.05"]
[Round "6"]
[White "starworld123"]
[Black "Zhuu96"]
[Result "0-1"]
[WhiteElo "2629"]
[BlackElo "2921"]
[TimeControl "180+1"]
[EndTime "11:06:50 PDT"]
[Termination "Zhuu96 won by resignation"]

1. e4 {[%clk 0:03:00.9]} 1... c5 {[%clk 0:02:59.5]} 2. Nf3 {[%clk 0:03:00.3]}
2... e6 {[%clk 0:02:44.7]} 3. d3 {[%clk 0:02:53]} 3... Nc6 {[%clk 0:02:37.6]} 4.
g3 {[%clk 0:02:51.7]} 4... g6 {[%clk 0:02:37.5]} 5. Bg2 {[%clk 0:02:51.7]} 5...
Bg7 {[%clk 0:02:37.6]} 6. O-O {[%clk 0:02:52.2]} 6... Nge7 {[%clk 0:02:36.7]} 7.
Nbd2 {[%clk 0:02:52.8]} 7... O-O {[%clk 0:02:36.1]} 8. Re1 {[%clk 0:02:52.8]}
8... d6 {[%clk 0:02:35.9]} 9. h4 {[%clk 0:02:51.3]} 9... h6 {[%clk 0:02:34.4]}
10. Nf1 {[%clk 0:02:50.1]} 10... b5 {[%clk 0:02:34.5]} 11. a4 {[%clk 0:02:44.8]}
11... b4 {[%clk 0:02:34]} 12. Ne3 {[%clk 0:02:45.4]} 12... Kh7 {[%clk
0:02:32.1]} 13. Rb1 {[%clk 0:02:42.8]} 13... Rb8 {[%clk 0:02:31.1]} 14. b3
{[%clk 0:02:42.5]} 14... e5 {[%clk 0:02:30.1]} 15. Bd2 {[%clk 0:02:39.5]} 15...
Be6 {[%clk 0:02:29.1]} 16. Nc4 {[%clk 0:02:08.4]} 16... f5 {[%clk 0:02:24.6]}
17. h5 {[%clk 0:01:58]} 17... f4 {[%clk 0:02:19.4]} 18. Nh4 {[%clk 0:01:45.5]}
18... g5 {[%clk 0:02:18.4]} 19. Nf5 {[%clk 0:01:45.9]} 19... Bxf5 {[%clk
0:02:08.5]} 20. exf5 {[%clk 0:01:46.8]} 20... d5 {[%clk 0:02:08.5]} 21. Nb2
{[%clk 0:01:34.8]} 21... Nxf5 {[%clk 0:02:06]} 22. Qf3 {[%clk 0:01:23.1]} 22...
fxg3 {[%clk 0:01:56]} 23. fxg3 {[%clk 0:01:17.5]} 23... e4 {[%clk 0:01:55.1]}
24. dxe4 {[%clk 0:01:15.6]} 24... Bd4+ {[%clk 0:01:54.3]} 25. Kh2 {[%clk
0:01:12.3]} 25... Nh4 {[%clk 0:01:34.5]} 26. Qg4 {[%clk 0:00:55.4]} 26... Ne5
{[%clk 0:01:31.8]} 27. Qe6 {[%clk 0:00:50.7]} 27... Nef3+ {[%clk 0:01:29.1]} 28.
Bxf3 {[%clk 0:00:50.1]} 28... Nxf3+ {[%clk 0:01:28.8]} 29. Kh1 {[%clk
0:00:50.1]} 29... Nxd2 {[%clk 0:01:27.8]} 30. Qg6+ {[%clk 0:00:48.1]} 30... Kh8
{[%clk 0:01:26.5]} 31. Qxh6+ {[%clk 0:00:48.6]} 31... Kg8 {[%clk 0:01:26.6]} 32.
Qg6+ {[%clk 0:00:48]} 32... Bg7 {[%clk 0:01:26.6]} 33. h6 {[%clk 0:00:48.7]}
33... Rf7 {[%clk 0:01:12.9]} 34. Rbd1 {[%clk 0:00:39]} 34... Rb6 {[%clk
0:01:11.2]} 35. Qxg7+ {[%clk 0:00:06]} 35... Rxg7 {[%clk 0:01:10.7]} 36. hxg7
{[%clk 0:00:06.9]} 36... Nf3 {[%clk 0:01:07]} 0-1

[Event "*** Titled Tuesday Blitz"]
[Site "Chess.com"]
[Date "2020.05.05"]
[Round "6"]
[White "swimmerchess"]
[Black "dragos420"]
[Result "1-0"]
[WhiteElo "2721"]
[BlackElo "2506"]
[TimeControl "180+1"]
[EndTime "11:06:50 PDT"]
[Termination "swimmerchess won by resignation"]

1. e4 {[%clk 0:03:00.9]} 1... e5 {[%clk 0:02:59.5]} 2. Nf3 {[%clk 0:03:00.5]}
2... Nc6 {[%clk 0:02:54.4]} 3. Bb5 {[%clk 0:02:59.5]} 3... g6 {[%clk 0:02:54.3]}
4. c3 {[%clk 0:02:59]} 4... Bg7 {[%clk 0:02:54.2]} 5. d4 {[%clk 0:02:58.3]} 5...
exd4 {[%clk 0:02:55.1]} 6. cxd4 {[%clk 0:02:59.2]} 6... a6 {[%clk 0:02:54.4]} 7.
Ba4 {[%clk 0:02:58.4]} 7... b5 {[%clk 0:02:54.5]} 8. Bb3 {[%clk 0:02:57.4]} 8...
Nge7 {[%clk 0:02:54.1]} 9. d5 {[%clk 0:02:57.1]} 9... Na5 {[%clk 0:02:54.3]} 10.
Bd2 {[%clk 0:02:57.4]} 10... Nxb3 {[%clk 0:02:54.1]} 11. Qxb3 {[%clk 0:02:57]}
11... c5 {[%clk 0:02:54.8]} 12. d6 {[%clk 0:02:46.5]} 12... Nc6 {[%clk
0:02:52.3]} 13. Bc3 {[%clk 0:02:46.1]} 13... c4 {[%clk 0:02:38.2]} 14. Qc2
{[%clk 0:02:38.2]} 14... O-O {[%clk 0:02:36.5]} 15. Bxg7 {[%clk 0:02:32.5]}
15... Kxg7 {[%clk 0:02:37.4]} 16. O-O {[%clk 0:02:31]} 16... Bb7 {[%clk
0:02:10.8]} 17. Nc3 {[%clk 0:02:27.9]} 17... Re8 {[%clk 0:01:48.6]} 18. a4
{[%clk 0:02:20.6]} 18... Nb4 {[%clk 0:01:31]} 19. Qd2 {[%clk 0:02:19.2]} 19...
Nd3 {[%clk 0:01:23.1]} 20. b3 {[%clk 0:02:02.9]} 20... Qf6 {[%clk 0:01:12.3]}
21. axb5 {[%clk 0:01:52]} 21... axb5 {[%clk 0:01:10.5]} 22. Rxa8 {[%clk
0:01:52.9]} 22... Bxa8 {[%clk 0:01:04.6]} 23. Nxb5 {[%clk 0:01:52.3]} 23... Bxe4
{[%clk 0:00:57.3]} 24. bxc4 {[%clk 0:01:52.1]} 24... Nf4 {[%clk 0:00:52.5]} 25.
Ne1 {[%clk 0:01:38.4]} 25... Qg5 {[%clk 0:00:45.3]} 26. Qb2+ {[%clk 0:01:30.1]}
26... Kg8 {[%clk 0:00:35.9]} 27. f3 {[%clk 0:01:21.6]} 27... Bc6 {[%clk
0:00:29.4]} 28. Nd4 {[%clk 0:01:16.5]} 28... Qe5 {[%clk 0:00:21.4]} 29. Nec2
{[%clk 0:01:00.2]} 29... Nd3 {[%clk 0:00:18.9]} 30. Qc3 {[%clk 0:00:58]} 30...
Nf4 {[%clk 0:00:18.7]} 31. Re1 {[%clk 0:00:55.2]} 31... Qg5 {[%clk 0:00:01.8]}
1-0

[Event "*** Titled Tuesday Blitz"]
[Site "Chess.com"]
[Date "2020.05.05"]
[Round "6"]
[White "grunbergmihai"]
[Black "MiroVlasenko"]
[Result "0-1"]
[WhiteElo "2392"]
[BlackElo "2582"]
[TimeControl "180+1"]
[EndTime "11:06:51 PDT"]
[Termination "MiroVlasenko won by checkmate"]

1. Nf3 {[%clk 0:03:00.9]} 1... f5 {[%clk 0:02:59.4]} 2. d3 {[%clk 0:02:58.3]}
2... d6 {[%clk 0:02:59.2]} 3. e4 {[%clk 0:02:58.1]} 3... e5 {[%clk 0:02:59.6]}
4. exf5 {[%clk 0:02:56.5]} 4... Bxf5 {[%clk 0:02:58.7]} 5. d4 {[%clk 0:02:56.7]}
5... e4 {[%clk 0:02:53.5]} 6. Nfd2 {[%clk 0:02:52.5]} 6... Nf6 {[%clk
0:02:47.7]} 7. c4 {[%clk 0:02:50.4]} 7... Be7 {[%clk 0:02:42.2]} 8. Nc3 {[%clk
0:02:49]} 8... O-O {[%clk 0:02:42]} 9. Be2 {[%clk 0:02:48.5]} 9... Nc6 {[%clk
0:02:31.1]} 10. Nf1 {[%clk 0:02:47.7]} 10... Qd7 {[%clk 0:02:24.9]} 11. Ng3
{[%clk 0:02:34.4]} 11... Bg6 {[%clk 0:02:20.6]} 12. Be3 {[%clk 0:02:27.2]} 12...
Rae8 {[%clk 0:02:16.2]} 13. h4 {[%clk 0:02:21.9]} 13... h6 {[%clk 0:02:13.8]}
14. h5 {[%clk 0:02:03.6]} 14... Bh7 {[%clk 0:02:13.6]} 15. Nd5 {[%clk
0:01:47.7]} 15... Bd8 {[%clk 0:02:07.5]} 16. Qb3 {[%clk 0:01:41.1]} 16... Ng4
{[%clk 0:02:00.4]} 17. O-O-O {[%clk 0:01:33]} 17... Nxf2 {[%clk 0:01:48.8]} 18.
Bxf2 {[%clk 0:01:32.7]} 18... Rxf2 {[%clk 0:01:48.4]} 19. Rhg1 {[%clk
0:01:19.9]} 19... e3 {[%clk 0:01:41]} 20. c5 {[%clk 0:01:09.2]} 20... Kh8 {[%clk
0:01:38.5]} 21. Nc3 {[%clk 0:01:05.5]} 21... Bh4 {[%clk 0:01:30.6]} 22. Nh1
{[%clk 0:01:03.3]} 22... Qf5 {[%clk 0:01:27.1]} 23. g4 {[%clk 0:00:53.3]} 23...
Qg5 {[%clk 0:01:14.7]} 24. cxd6 {[%clk 0:00:47.1]} 24... cxd6 {[%clk 0:01:06.7]}
25. Qxb7 {[%clk 0:00:46.2]} 25... Rxe2 {[%clk 0:01:00.5]} 26. Nxe2 {[%clk
0:00:46.1]} 26... Na5 {[%clk 0:00:48.7]} 27. Qd7 {[%clk 0:00:42.6]} 27... Rb8
{[%clk 0:00:46.1]} 28. Rgf1 {[%clk 0:00:31.6]} 28... Qd5 {[%clk 0:00:38]} 29.
Nc3 {[%clk 0:00:24.6]} 29... Qxa2 {[%clk 0:00:32]} 30. Nxa2 {[%clk 0:00:23]}
30... Nb3# {[%clk 0:00:31.8]} 0-1

[Event "*** Titled Tuesday Blitz"]
[Site "Chess.com"]
[Date "2020.05.05"]
[Round "6"]
[White "ChesterF"]
[Black "MaxLeto"]
[Result "1-0"]
[WhiteElo "2505"]
[BlackElo "2329"]
[TimeControl "180+1"]
[EndTime "11:06:52 PDT"]
[Termination "ChesterF won on time"]

1. d4 {[%clk 0:03:00.9]} 1... Nf6 {[%clk 0:02:55.9]} 2. c4 {[%clk 0:02:59.4]}
2... g6 {[%clk 0:02:56.2]} 3. Nc3 {[%clk 0:02:59.5]} 3... Bg7 {[%clk 0:02:56.2]}
4. e4 {[%clk 0:03:00]} 4... d6 {[%clk 0:02:56.9]} 5. Nf3 {[%clk 0:02:59.6]} 5...
O-O {[%clk 0:02:56.8]} 6. Be2 {[%clk 0:02:59.7]} 6... Nc6 {[%clk 0:02:57.3]} 7.
O-O {[%clk 0:02:59.8]} 7... e5 {[%clk 0:02:57.9]} 8. d5 {[%clk 0:03:00.1]} 8...
Ne7 {[%clk 0:02:57.5]} 9. Ne1 {[%clk 0:03:00.5]} 9... Ne8 {[%clk 0:02:53.4]} 10.
Bd2 {[%clk 0:03:00.1]} 10... f5 {[%clk 0:02:53.1]} 11. f3 {[%clk 0:03:00.5]}
11... f4 {[%clk 0:02:26.2]} 12. Nd3 {[%clk 0:02:59.7]} 12... g5 {[%clk
0:02:26.4]} 13. c5 {[%clk 0:02:59.7]} 13... Rf6 {[%clk 0:02:24.6]} 14. Rc1
{[%clk 0:02:59.6]} 14... h5 {[%clk 0:01:41.8]} 15. Nb5 {[%clk 0:02:37.4]} 15...
a6 {[%clk 0:01:36.9]} 16. Na3 {[%clk 0:02:35.9]} 16... Rg6 {[%clk 0:01:28.3]}
17. Nf2 {[%clk 0:02:27.1]} 17... Nf6 {[%clk 0:01:23.7]} 18. cxd6 {[%clk
0:02:26.9]} 18... cxd6 {[%clk 0:01:23.2]} 19. Nc4 {[%clk 0:02:25.8]} 19... b6
{[%clk 0:00:57.6]} 20. Qb3 {[%clk 0:02:21.6]} 20... Rb8 {[%clk 0:00:52.3]} 21.
Qa3 {[%clk 0:02:20]} 21... Ne8 {[%clk 0:00:47.8]} 22. Bb4 {[%clk 0:02:08.3]}
22... a5 {[%clk 0:00:43.7]} 23. Bc3 {[%clk 0:02:03.7]} 23... g4 {[%clk
0:00:44.2]} 24. Qb3 {[%clk 0:01:47.1]} 24... g3 {[%clk 0:00:38.7]} 25. Nd3
{[%clk 0:01:46.7]} 25... gxh2+ {[%clk 0:00:38.4]} 26. Kh1 {[%clk 0:01:46.9]}
26... Kh7 {[%clk 0:00:29.5]} 27. Bxa5 {[%clk 0:01:18.6]} 27... bxa5 {[%clk
0:00:22.7]} 28. Qxb8 {[%clk 0:01:16.8]} 28... Rxg2 {[%clk 0:00:23.6]} 29. Qb6
{[%clk 0:01:11.6]} 29... Qd7 {[%clk 0:00:19.8]} 30. Kxg2 {[%clk 0:01:06.7]}
30... Qh3+ {[%clk 0:00:20.1]} 31. Kh1 {[%clk 0:01:06.8]} 31... Qg3 {[%clk
0:00:03.1]} 32. Qf2 {[%clk 0:01:05.1]} 32... h4 {[%clk 0:00:02.2]} 33. Qxh2
{[%clk 0:01:01.6]} 33... Ng6 {[%clk 0:00:01.2]} 34. Rg1 {[%clk 0:00:59.4]} 1-0

[Event "*** Titled Tuesday Blitz"]
[Site "Chess.com"]
[Date "2020.05.05"]
[Round "6"]
[White "Kensei26"]
[Black "Shushik"]
[Result "1-0"]
[WhiteElo "2157"]
[BlackElo "2025"]
[TimeControl "180+1"]
[EndTime "11:06:53 PDT"]
[Termination "Kensei26 won by resignation"]

1. e4 {[%clk 0:03:00.9]} 1... e5 {[%clk 0:02:59.7]} 2. Nf3 {[%clk 0:03:00.3]}
2... Nc6 {[%clk 0:02:59.6]} 3. Bb5 {[%clk 0:02:59.7]} 3... Nf6 {[%clk
0:02:59.4]} 4. O-O {[%clk 0:02:59.3]} 4... Nxe4 {[%clk 0:02:59.4]} 5. d4 {[%clk
0:02:59.3]} 5... Nd6 {[%clk 0:02:58.7]} 6. Bxc6 {[%clk 0:02:59.4]} 6... dxc6
{[%clk 0:02:58.7]} 7. dxe5 {[%clk 0:03:00.3]} 7... Nf5 {[%clk 0:02:58.5]} 8.
Qxd8+ {[%clk 0:02:56.2]} 8... Kxd8 {[%clk 0:02:58.5]} 9. Rd1+ {[%clk 0:02:57.1]}
9... Ke8 {[%clk 0:02:58.4]} 10. Nc3 {[%clk 0:02:57.5]} 10... Be7 {[%clk
0:02:52.4]} 11. Ne2 {[%clk 0:02:56.5]} 11... Be6 {[%clk 0:02:43.3]} 12. Nf4
{[%clk 0:02:51.8]} 12... Bd7 {[%clk 0:02:33.4]} 13. b3 {[%clk 0:02:40]} 13... g5
{[%clk 0:02:19.4]} 14. Nh5 {[%clk 0:02:37.6]} 14... g4 {[%clk 0:02:12.3]} 15.
Ng5 {[%clk 0:02:16.8]} 15... h6 {[%clk 0:01:52]} 16. Ne4 {[%clk 0:02:15.3]}
16... Be6 {[%clk 0:01:51.1]} 17. Nef6+ {[%clk 0:02:13.5]} 17... Kf8 {[%clk
0:01:41.5]} 18. Nxg4 {[%clk 0:01:58.1]} 18... Rg8 {[%clk 0:00:57]} 19. Nxh6
{[%clk 0:01:43.3]} 19... Rg6 {[%clk 0:00:44.9]} 20. Nxf5 {[%clk 0:01:37.7]}
20... Bxf5 {[%clk 0:00:44.6]} 21. Ng3 {[%clk 0:00:37.3]} 21... Be6 {[%clk
0:00:35.3]} 22. c4 {[%clk 0:00:34.1]} 22... b5 {[%clk 0:00:32.3]} 23. cxb5
{[%clk 0:00:32.8]} 23... Bd5 {[%clk 0:00:29]} 24. bxc6 {[%clk 0:00:29.5]} 24...
Bxc6 {[%clk 0:00:28.7]} 25. Be3 {[%clk 0:00:29.3]} 25... Bb4 {[%clk 0:00:20.1]}
26. Rac1 {[%clk 0:00:28.3]} 26... Kg7 {[%clk 0:00:19.8]} 27. f4 {[%clk
0:00:27.5]} 27... Kh7 {[%clk 0:00:19.3]} 28. f5 {[%clk 0:00:27.8]} 28... Rg7
{[%clk 0:00:19]} 29. Rxc6 {[%clk 0:00:27.4]} 1-0